bitfinex-derivatives/quotes_ETHF0:USTF0_20250103
["timestamp","ask_amount","ask_price","bid_price","bid_amount"]
[1735912600613,0.28715,3485.5,3485.4,0.28714]
[1735912604009,0.28714,3485.6,3485.5,0.28713]
[1735912604404,3.2078,3485.6,3485.2,6.76792687]
[1735912604604,0.28716,3485.4,3485.3,0.28715]
[1735912605516,3.2078,3485.6,3485.2,6.76792687]
[1735912605712,0.28716,3485.3,3485.2,6.76792687]
[1735912606010,0.28716,3485.3,3485.2,7.05509687]
[1735912606310,0.28716,3485.3,3485.2,0.28717]
[1735912607105,41.51786,3485.5,3485.0,6.76792687]
[1735912607307,0.28717,3485.1,3485.0,6.76792687]
[1735912607508,0.28717,3485.1,3485.0,7.05510687]
[1735912607910,0.28717,3485.1,3485.0,0.28718]
[1735912608513,40.8,3485.2,3484.9,6.76792687]
[1735912608707,41.08717,3485.2,3485.1,0.28717]
[1735912608910,0.28716,3485.4,3484.9,6.76792687]
[1735912609113,0.28716,3485.3,3485.2,0.28716]
[1735912609318,2.53817995,3485.4,3485.3,0.28716]
[1735912610004,2.25102995,3485.4,3485.3,0.28716]
[1735912610405,2.25102995,3485.5,3485.4,0.28715]
[1735912611916,0.28711,3485.9,3485.8,0.28712]
[1735912612609,5.45882995,3486.0,3485.4,13.21881079]
[1735912612810,5.45882995,3486.0,3485.9,0.28711]
[1735912613511,2.25102995,3486.0,3485.9,0.28711]
[1735912615310,0.28709,3486.2,3486.1,0.28709]
[1735912617915,2.53811995,3486.2,3486.1,0.28709]
[1735912618220,2.25102995,3486.2,3485.9,6.77204808]
[1735912618422,0.2871,3486.0,3485.9,6.77204808]
[1735912619124,0.28711,3485.9,3485.8,6.77204808]
[1735912619719,41.08711,3485.9,3485.8,6.77204808]
[1735912620319,41.08711,3485.9,3485.8,11.02804198]
[1735912620514,40.8,3485.9,3485.8,11.02804198]
[1735912620720,0.2871,3486.0,3485.8,11.02804198]
[1735912621114,2.25102995,3486.1,3485.8,11.02804198]
[1735912621326,0.28711,3485.9,3485.8,11.02804198]
[1735912621730,0.28712,3485.8,3485.7,8.96396473]
[1735912622919,6.17657995,3486.1,3485.7,11.02588137]
[1735912623129,0.28712,3485.8,3485.7,11.02588137]
[1735912624226,0.28712,3485.8,3485.7,4.25552877]
[1735912625422,0.28712,3485.8,3485.7,1.78304877]
[1735912625724,5.28712,3485.8,3485.7,3.07883871]
[1735912625923,5.28712,3485.8,3485.7,1.55671871]
[1735912626222,5.28712,3485.8,3485.6,6.27249137]
[1735912626223,0.28713,3485.7,3485.6,5.05835008]
[1735912626423,3.49493,3485.7,3485.6,5.05835008]
[1735912626623,8.49493,3485.7,3485.6,5.05835008]
[1735912627230,8.49493,3485.7,3484.4,0.28723]
[1735912627231,0.28722,3484.5,3484.4,0.28723]
[1735912628633,0.28722,3484.6,3484.4,0.28723]
[1735912628929,0.28722,3484.6,3484.5,0.28722]
[1735912632032,0.28723,3484.5,3484.4,0.28723]
[1735912633130,0.71797,3485.0,3484.5,0.28722]
[1735912633131,0.2872,3484.8,3484.5,0.28722]
[1735912633331,0.28722,3484.6,3484.5,0.28722]
[1735912634424,0.28723,3484.5,3484.4,0.28723]
[1735912634629,0.28722,3484.6,3484.5,0.28722]
[1735912636928,3.2078,3484.9,3484.2,2.24238883]
[1735912637126,0.28721,3484.7,3484.6,0.28721]
[1735912637323,3.49499,3484.9,3484.8,0.2872]
[1735912637529,2.25534244,3485.1,3484.5,5.45018883]
[1735912637826,3.2078,3484.9,3484.2,2.96051883]
[1735912638034,0.28722,3484.6,3484.1,3.2078]
[1735912638226,0.28722,3484.6,3484.5,0.28722]
[1735912639032,3.2078,3484.9,3484.3,0.28724]
[1735912639231,0.28723,3484.5,3484.4,0.28723]
[1735912639833,3.2078,3484.9,3484.1,3.2078]
[1735912640035,0.71801,3484.8,3484.1,3.2078]
[1735912640234,0.28723,3484.5,3484.4,0.28723]
[1735912640633,0.71801,3484.8,3484.1,3.2078]
[1735912640934,0.28723,3484.5,3484.4,0.28723]
[1735912641532,3.2078,3484.9,3484.1,3.2078]
[1735912641830,0.28722,3484.6,3484.5,0.28722]
[1735912643130,3.2078,3484.9,3484.1,3.92594]
[1735912643324,0.28722,3484.6,3484.5,0.28722]
[1735912645236,0.2872,3484.8,3484.7,0.2872]
[1735912650440,3.49499,3485.0,3484.9,0.28719]
[1735912652036,0.2872,3484.8,3484.7,0.2872]
[1735912652237,3.2078,3485.0,3484.2,6.16831883]
[1735912652433,0.28723,3484.5,3484.4,0.28722]
[1735912653836,3.2078,3484.5,3483.9,0.22523428]
[1735912654037,0.28725,3484.2,3484.0,0.28727]
[1735912654341,3.2078,3484.1,3483.8,8.96396473]
[1735912654538,0.28727,3483.9,3483.8,9.25124473]
[1735912654842,0.28727,3484.0,3483.9,0.28727]
[1735912655643,0.28728,3483.9,3483.8,0.28727]
[1735912655846,0.28727,3484.0,3483.9,0.28727]
[1735912656639,0.28729,3483.7,3483.6,0.28729]
[1735912656843,0.28728,3483.8,3483.7,0.28729]
[1735912658537,3.2078,3484.1,3483.3,3.2078]
[1735912658738,3.2078,3484.1,3483.4,0.71829]
[1735912658940,3.49506,3484.1,3484.0,0.28727]
[1735912660344,3.2078,3484.1,3484.0,0.28727]
[1735912662951,3.49506,3484.1,3484.0,0.28727]
[1735912665146,0.28728,3483.9,3483.8,0.28727]
[1735912665548,0.28729,3483.8,3483.7,0.28729]
[1735912666049,3.2078,3484.1,3483.3,3.2078]
[1735912666251,0.2873,3483.7,3483.6,0.28729]
[1735912666950,0.2873,3483.7,3483.1,5.45018883]
[1735912666951,0.28732,3483.4,3483.3,0.28732]
[1735912667246,0.28732,3483.4,3483.1,3.2078]
[1735912667247,3.2078,3483.4,3483.1,0.28734]
[1735912667452,0.28734,3483.2,3483.1,0.28734]
[1735912668248,0.28735,3483.1,3483.0,0.28734]
[1735912668450,0.28733,3483.3,3483.2,0.28732]
[1735912668755,0.28733,3483.3,3483.2,0.28733]
[1735912669158,0.28734,3483.2,3483.1,0.28733]
[1735912670252,0.28733,3483.3,3483.2,0.28732]
[1735912670456,3.49512,3483.4,3483.3,0.28732]
[1735912670750,2.25534244,3483.7,3482.9,3.2078]
[1735912670948,2.25534244,3483.7,3482.4,0.2341313]
[1735912670949,2.25534244,3483.7,3483.6,0.2873]
[1735912671658,5.46314244,3483.9,3483.8,0.28728]
[1735912672058,5.75041244,3483.9,3483.8,0.28728]
[1735912672255,5.46314244,3483.9,3483.8,0.28728]
[1735912672953,5.46314244,3484.4,3484.3,0.28724]
[1735912673161,5.75037244,3484.4,3484.3,0.28724]
[1735912673561,5.46314244,3484.4,3484.3,0.28724]
[1735912674260,3.2078,3484.4,3484.3,0.28724]
[1735912675672,3.2078,3484.4,3484.0,0.71816]
[1735912675673,3.2078,3484.4,3483.7,3.2078]
[1735912675957,0.28738,3482.6,3482.3,0.2874]
[1735912676264,2.873,3483.7,3482.3,0.28741]
[1735912676265,3.2078,3482.4,3482.3,0.28741]
[1735912676750,3.2078,3482.4,3482.1,6.82726266]
[1735912676956,5.46314244,3482.4,3481.9,2.24238883]
[1735912677161,5.46314244,3482.4,3482.1,0.28742]
[1735912677361,2.25534244,3482.4,3481.9,2.24238883]
[1735912677567,3.2078,3482.1,3481.9,0.28744]
[1735912677854,3.2078,3482.1,3481.5,3.40138883]
[1735912678060,3.2078,3482.1,3481.9,0.28744]
[1735912678262,3.2078,3482.1,3481.5,3.40138883]
[1735912678450,3.2078,3482.1,3481.9,0.28743]
[1735912678650,3.2078,3482.1,3481.5,3.40138883]
[1735912678860,3.2078,3482.1,3481.9,0.28743]
[1735912679059,3.2078,3482.1,3481.5,3.40138883]
[1735912679256,3.2078,3482.1,3481.8,0.28744]
[1735912679657,3.2078,3482.1,3482.0,0.28743]
[1735912681467,2.15287954,3482.3,3482.2,0.28741]
[1735912681659,3.2078,3483.2,3482.2,6.64118883]
[1735912681961,3.49514,3483.2,3482.9,0.28735]
[1735912682468,0.28734,3483.1,3482.8,0.28736]
[1735912682859,3.2078,3483.2,3482.3,0.71851]
[1735912683051,3.2078,3482.8,3482.6,2.24238883]
[1735912683252,3.2078,3482.8,3482.7,0.28737]
[1735912684661,3.2078,3483.2,3482.6,2.24238883]
[1735912684863,3.2078,3483.2,3483.1,0.28734]
[1735912693068,3.2078,3483.2,3482.7,0.71842]
[1735912693366,3.2078,3483.2,3483.1,0.28734]
[1735912697079,3.49513,3483.2,3483.1,0.28734]
[1735912697463,0.28737,3482.9,3482.8,0.28736]
[1735912697770,0.28737,3482.8,3482.7,0.28737]
[1735912697970,3.49517,3482.8,3482.7,0.28737]
[1735912698269,3.2078,3482.8,3482.7,0.28737]
[1735912699075,3.2078,3482.8,3482.3,0.15014577]
[1735912699275,0.28739,3482.6,3482.1,0.28742]
[1735912699476,5.45018883,3482.8,3482.0,1.90958]
[1735912699770,3.2078,3482.8,3482.7,0.28737]
[1735912702677,3.2078,3483.2,3482.5,0.86655651]
[1735912702877,0.28735,3483.0,3482.9,0.28735]
[1735912705479,0.28735,3483.1,3483.0,0.28734]
[1735912705982,0.28735,3483.0,3482.9,0.28735]
[1735912706875,0.28735,3483.1,3483.0,0.28734]
[1735912707679,3.67036366,3483.1,3483.0,0.28734]
[1735912708981,6.87815366,3483.2,3483.1,0.28734]
[1735912710285,3.92629794,3483.2,3483.1,0.28734]
[1735912710574,3.63895794,3483.2,3483.1,0.28734]
[1735912711579,3.2078,3483.2,3483.1,0.28734]
[1735912712874,7.01379663,3483.2,3483.1,0.28734]
[1735912715590,3.2078,3483.2,3483.1,0.28734]
[1735912718800,7.30109411,3483.2,3483.1,0.28734]
[1735912719191,7.01376411,3483.2,3483.1,0.28734]
[1735912719891,3.63892542,3483.2,3483.1,0.28734]
[1735912721099,3.2078,3483.2,3483.1,0.28734]
[1735912722303,3.63892542,3483.2,3483.1,0.28734]
[1735912722795,0.43112542,3483.2,3483.1,0.28734]
[1735912722996,0.43112542,3483.2,3483.1,5.28734]
[1735912723600,3.37951473,3483.4,3483.3,0.28732]
[1735912724804,0.43110063,3483.5,3483.1,0.28734]
[1735912725006,0.43110063,3483.5,3483.4,0.28731]
[1735912725996,4.94178551,3483.5,3483.4,0.28731]
[1735912728298,0.43110063,3483.5,3483.4,0.28731]
[1735912733403,3.81469777,3483.5,3483.4,0.28731]
[1735912734601,6.59139714,3483.6,3483.2,1.171]
[1735912734796,6.59139714,3483.6,3483.5,0.28731]
[1735912735003,0.28732,3483.4,3483.3,0.28732]
[1735912736007,0.71844225,3483.4,3483.3,0.28732]
[1735912737111,5.22912713,3483.4,3483.3,0.28732]
[1735912738302,5.22912713,3483.4,3482.8,1.43682]
[1735912738303,7.18419596,3483.4,3482.8,1.43682]
[1735912738611,3.2078,3483.1,3483.0,0.28735]
[1735912739005,6.58912294,3483.1,3483.0,0.28735]
[1735912740206,7.02024519,3483.1,3483.0,0.28735]
[1735912740707,3.81244519,3483.1,3483.0,0.28735]
[1735912741910,3.38132294,3483.2,3483.1,0.28734]
[1735912747508,0.43112225,3483.3,3482.9,2.24238883]
[1735912747509,3.38132294,3483.3,3482.9,2.24238883]
[1735912747704,3.38132294,3483.3,3483.2,0.28733]
[1735912748918,6.58912294,3483.5,3483.0,0.71838]
[1735912749117,6.58912294,3483.5,3483.4,0.28731]
[1735912749518,3.38132294,3483.5,3483.4,0.28731]
[1735912750116,3.81238733,3483.5,3483.4,0.28731]
[1735912751623,3.38132294,3483.7,3483.6,0.2873]
[1735912753927,3.81237227,3483.8,3483.7,0.28729]
[1735912756224,6.58912294,3483.9,3483.4,0.71827]
[1735912756528,6.58912294,3483.9,3483.8,0.28728]
[1735912757323,7.02014901,3483.9,3483.8,0.28728]
[1735912763233,6.58912294,3483.9,3483.8,0.28728]
[1735912763425,3.2078,3483.9,3483.8,0.28728]
[1735912766934,3.2078,3483.9,3483.4,0.71827]
[1735912767128,0.28729,3483.8,3483.5,0.28731]
[1735912767328,0.28729,3483.8,3483.7,0.28729]
[1735912768737,0.43106653,3483.8,3483.1,0.71834]
[1735912768936,0.43106653,3483.8,3482.9,9.75177146]
[1735912768937,3.2078,3483.4,3482.9,9.75177146]
[1735912769137,3.2078,3483.4,3483.3,0.28732]
[1735912770040,3.63886653,3483.4,3483.3,0.28732]
[1735912771242,7.01763989,3483.4,3483.3,0.28732]
[1735912772343,3.63886653,3483.4,3483.3,0.28732]
[1735912773840,3.2078,3483.4,3483.3,0.28732]
[1735912774845,7.01717153,3483.4,3483.3,0.28732]
[1735912779040,7.01717153,3483.4,3483.3,2.52970883]
[1735912780053,6.586105,3483.4,3483.3,0.28732]
[1735912781352,3.2078,3483.4,3483.3,0.28732]
[1735912783956,3.378305,3483.6,3483.0,2.24238883]
[1735912784159,3.378305,3483.6,3483.5,0.28731]
[1735912785256,5.2290575,3483.7,3483.6,0.2873]
[1735912785756,4.9417675,3483.7,3483.6,0.2873]
[1735912786350,4.9417675,3483.7,3483.3,0.7183]
[1735912786947,4.9417675,3483.7,3483.6,0.2873]
[1735912787456,5.2290575,3483.7,3483.6,0.2873]
[1735912787659,4.9417675,3483.7,3483.6,0.2873]
[1735912789461,5.93174758,3483.7,3482.7,10.02337154]
[1735912789659,3.2078,3483.1,3483.0,0.28735]
[1735912793960,3.38399918,3483.3,3482.9,0.98998008]
[1735912794164,3.38399918,3483.3,3483.2,1.27731008]
[1735912794364,3.38399918,3483.3,3483.2,2.43631008]
[1735912794665,7.71848488,3483.5,3483.2,2.14898008]
[1735912794666,3.81507009,3483.4,3483.2,2.14898008]
[1735912794859,3.81507009,3483.4,3483.3,0.28732]
[1735912796062,4.10238009,3483.4,3483.3,0.28732]
[1735912796462,0.43107091,3483.4,3483.3,0.28732]
[1735912797461,0.71838091,3483.4,3483.3,0.28732]
[1735912797662,0.43107091,3483.4,3483.1,0.28734]
[1735912797864,0.28733,3483.2,3483.1,0.28734]
[1735912798564,0.98998008,3483.3,3483.1,0.28734]
[1735912798764,0.98998008,3483.3,3482.6,9.03339146]
[1735912798963,3.2078,3482.9,3482.8,0.28736]
[1735912800364,3.2078,3482.9,3482.8,1.27734008]
[1735912800771,8.14955579,3482.9,3482.8,0.28736]
[1735912802171,7.01908539,3482.9,3482.8,0.28736]
[1735912806264,4.51068488,3483.3,3483.2,0.28733]
[1735912806465,4.51068488,3483.3,3483.2,5.64411008]
[1735912807065,3.2078,3483.7,3483.6,0.2873]
[1735912807270,3.2078,3483.7,3483.6,1.27728008]
[1735912807765,4.51068488,3483.8,3483.7,0.28729]
[1735912807972,4.51068488,3483.8,3483.7,3.49509]
[1735912808365,2.25508642,3483.8,3483.7,5.74604959]
[1735912808977,4.51068488,3484.4,3483.7,10.45875959]
[1735912809172,3.85590983,3484.4,3484.3,2.53819959]
[1735912809468,3.46654117,3484.7,3484.3,5.94815918]
[1735912809680,3.2078,3486.0,3485.3,0.28716]
[1735912809868,6.73892291,3485.8,3485.3,3.40995959]
[1735912810062,6.73892291,3485.8,3485.7,0.28713]
[1735912810478,6.73892291,3485.8,3485.3,3.40995959]
[1735912810672,6.73892291,3485.8,3485.7,0.28713]
[1735912812176,3.2078,3486.0,3485.9,0.28711]
[1735912812565,3.2078,3486.0,3485.7,0.28712]
[1735912812876,0.28713,3485.6,3485.5,4.50065479]
[1735912813067,3.2078,3485.6,3485.5,4.50065479]
[1735912813269,3.49493,3485.6,3485.5,4.50065479]
[1735912813471,0.28715,3485.4,3485.0,4.78783479]
[1735912813668,3.2078,3485.1,3485.0,4.50065479]
[1735912813872,3.49497,3485.1,3485.0,4.50065479]
[1735912814074,10.74592959,3485.1,3485.0,2.61465479]
[1735912814573,51.54592959,3485.1,3485.0,2.61465479]
[1735912814768,51.25875959,3485.1,3483.8,6.75098219]
[1735912814967,3.2078,3483.9,3483.8,7.03826219]
[1735912816181,3.2078,3483.9,3483.8,0.28728]
[1735912818674,3.20062455,3483.9,3483.8,0.28728]
[1735912818874,3.20062455,3483.9,3483.7,2.25095959]
[1735912818875,3.2078,3484.3,3483.7,2.25095959]
[1735912819067,3.2078,3484.3,3484.2,0.28725]
[1735912821577,3.2078,3484.3,3484.0,2.25095959]
[1735912821578,3.2078,3484.9,3484.8,0.2872]
[1735912832285,0.2872,3484.8,3484.1,2.25095959]
[1735912832491,3.2078,3484.4,3484.3,0.28724]
[1735912832888,3.2078,3484.4,3484.2,0.28724]
[1735912833092,3.2078,3484.4,3483.8,3.40895959]
[1735912833291,3.2078,3484.4,3484.3,0.28724]
[1735912836292,3.2078,3484.4,3483.8,3.40895959]
[1735912836495,3.2078,3484.0,3483.5,1.158]
[1735912836792,3.49507,3484.0,3483.8,0.28728]
[1735912837092,3.49507,3484.0,3483.5,1.158]
[1735912837390,3.49507,3484.0,3483.9,0.28727]
[1735912837593,3.2078,3484.0,3483.9,0.28727]
[1735912842210,3.2078,3484.0,3482.8,6.75098219]
[1735912842211,3.2078,3484.0,3483.3,0.7183]
[1735912842412,0.28729,3483.8,3483.6,0.28729]
[1735912842611,3.2078,3484.0,3483.1,1.158]
[1735912842811,3.2078,3483.5,3483.4,0.28731]
[1735912843116,0.28732,3483.4,3483.2,0.28733]
[1735912843318,3.2078,3483.5,3482.8,6.75098219]
[1735912843615,3.2078,3483.0,3482.9,0.28736]
[1735912845412,3.2078,3483.0,3482.5,0.94399903]
[1735912845413,3.2078,3483.0,3482.5,0.22552903]
[1735912845613,3.49515,3483.0,3482.3,3.40895959]
[1735912845814,3.49515,3483.0,3482.8,0.28736]
[1735912846419,3.49515,3483.0,3482.2,0.71854]
[1735912846420,0.28736,3482.9,3482.2,0.71854]
[1735912846620,3.2078,3482.6,3482.5,0.28739]
[1735912853517,3.2078,3483.0,3482.9,0.28736]
[1735912857923,3.2078,3483.0,3482.7,0.28737]
[1735912858118,3.2078,3483.0,3482.6,0.28738]
[1735912858324,0.28737,3482.8,3482.6,0.28738]
[1735912858519,0.28737,3482.8,3482.7,0.28737]
[1735912859126,40.8,3482.9,3482.2,0.71852]
[1735912859326,0.28735,3483.0,3482.8,0.28736]
[1735912859529,3.2078,3482.9,3482.8,0.28736]
[1735912861220,44.0078,3482.9,3482.8,0.28736]
[1735912861831,3.2078,3482.9,3482.8,0.28736]
[1735912862526,0.28737,3482.8,3482.7,0.28737]
[1735912862828,3.2078,3482.9,3482.8,0.28736]
[1735912864024,3.49516,3482.9,3482.8,0.28736]
[1735912864235,3.2078,3482.9,3482.8,0.28736]
[1735912864834,3.2078,3482.9,3482.8,2.53831959]
[1735912865528,3.2078,3483.7,3483.6,0.2873]
[1735912869326,3.2078,3483.7,3483.6,2.53825959]
[1735912869526,3.2078,3484.2,3484.1,0.28726]
[1735912870226,3.2078,3484.2,3483.3,0.71832]
[1735912870227,3.2078,3484.2,3482.7,8.18785219]
[1735912870438,3.2078,3483.8,3483.7,0.28729]
[1735912871137,0.28729,3483.7,3483.6,0.28729]
[1735912871343,3.2078,3483.8,3483.2,4.12727959]
[1735912871639,0.28728,3483.8,3483.7,0.28729]
[1735912871832,3.2078,3483.8,3483.7,0.28729]
[1735912874937,3.2078,3484.2,3484.1,0.28726]
[1735912881142,3.2078,3484.2,3484.1,2.53821959]
[1735912881445,6.57546928,3484.7,3484.6,0.28722]
[1735912882043,3.2078,3484.7,3484.6,0.28722]
[1735912886635,6.86262928,3485.3,3484.6,0.28722]
[1735912886938,6.86262928,3485.3,3485.2,0.28717]
[1735912887343,3.49496,3485.3,3485.2,0.28717]
[1735912887934,3.2078,3485.3,3485.2,0.28717]
[1735912888135,3.49496,3485.3,3485.2,0.28717]
[1735912889449,0.28718,3485.2,3485.1,0.28717]
[1735912889643,3.2078,3485.3,3484.5,0.71805]
[1735912889946,2.25095959,3485.4,3484.6,0.28722]
[1735912889947,3.2078,3484.7,3484.6,0.28722]
[1735912891044,3.2078,3485.2,3484.4,2.25095959]
[1735912891247,3.2078,3485.2,3485.1,0.28717]
[1735912892243,3.49497,3485.2,3485.1,0.28717]
[1735912894956,0.28719,3485.0,3484.9,0.28718]
[1735912895451,3.49497,3485.2,3485.1,0.28717]
[1735912895754,3.2078,3485.2,3485.1,0.28717]
[1735912899144,3.2078,3485.7,3485.6,0.28713]
[1735912899758,3.2078,3485.7,3485.6,2.53808959]
[1735912900363,0.28707,3486.4,3486.0,0.2871]
[1735912900364,3.2078,3486.1,3486.0,0.2871]
[1735912905654,3.2078,3486.6,3485.9,2.25095959]
[1735912905858,3.2078,3486.6,3486.5,0.28706]
[1735912906364,3.2078,3486.6,3486.5,2.53801959]
[1735912909764,3.2078,3486.6,3486.5,0.28706]
[1735912912363,3.2078,3486.6,3486.5,2.53801959]
[1735912913465,3.2078,3487.4,3487.3,0.28699]
[1735912916063,3.2078,3487.4,3486.8,2.96854959]
[1735912916272,3.2078,3486.9,3486.8,2.53798959]
[1735912916472,3.2078,3487.4,3486.8,2.25095959]
[1735912916770,3.49479,3487.4,3487.3,0.28699]
[1735912916966,3.2078,3487.4,3487.3,0.28699]
[1735912924173,3.2078,3487.4,3486.8,2.25095959]
[1735912924374,3.2078,3486.9,3486.8,2.53798959]
[1735912924671,3.2078,3487.3,3487.2,0.287]
[1735912925064,3.2078,3487.3,3486.8,2.96853959]
[1735912925273,3.2078,3486.9,3486.8,2.53798959]
[1735912928073,3.2078,3486.9,3486.8,0.28703]
[1735912931580,3.49483,3486.9,3486.8,0.28703]
[1735912931880,3.2078,3486.9,3486.8,0.28703]
[1735912933681,3.2078,3487.3,3487.2,0.287]
[1735912934575,2.24177509,3487.6,3487.5,0.28698]
[1735912934782,2.24177509,3487.6,3487.5,2.53793959]
[1735912935082,3.2078,3487.7,3487.5,2.25095959]
[1735912935271,2.24177509,3488.2,3487.2,2.25095959]
[1735912935474,2.24177509,3488.2,3488.1,0.28693]
[1735912935876,0.28694,3488.0,3487.3,0.71749]
[1735912936077,3.2078,3487.7,3487.6,0.28697]
[1735912936984,3.2078,3487.7,3487.2,0.287]
[1735912936985,0.28699,3487.4,3487.2,0.287]
[1735912937284,3.2078,3487.3,3486.7,4.46796033]
[1735912937581,3.2078,3486.8,3486.7,4.75500033]
[1735912937980,3.2078,3486.8,3486.7,0.28704]
[1735912938476,3.2078,3486.8,3486.2,19.04896033]
[1735912938683,3.49484,3486.8,3486.6,0.28705]
[1735912939081,3.49484,3486.8,3486.7,0.28704]
[1735912939278,3.2078,3486.8,3486.7,0.28704]
[1735912939579,3.2078,3486.8,3486.2,15.2987]
[1735912939788,3.49484,3486.8,3486.7,0.28704]
[1735912939986,3.2078,3486.8,3486.7,0.28704]
[1735912941586,3.49483,3486.8,3486.6,0.28704]
[1735912941789,3.49483,3486.8,3486.7,0.28704]
[1735912941987,3.2078,3486.8,3486.7,0.28704]
[1735912952895,3.2078,3486.8,3486.6,0.28705]
[1735912953095,0.28705,3486.6,3486.5,4.46796033]
[1735912953503,41.08705,3486.6,3486.5,4.46796033]
[1735912953992,0.28705,3486.6,3486.5,4.75502033]
[1735912954392,45.7220634,3486.6,3486.5,0.28706]
[1735912954990,4.9220634,3486.6,3486.5,0.28706]
[1735912955790,5.63350517,3486.7,3486.2,15.29871]
[1735912956098,5.63350517,3486.7,3486.6,0.28705]
[1735912956691,5.92054517,3486.7,3486.6,0.28705]
[1735912959392,6.35130137,3486.7,3486.6,0.28705]
[1735912960002,0.28707,3486.5,3486.4,0.28705]
[1735912962201,2.54143382,3486.5,3486.4,0.28705]
[1735912964703,2.54142382,3486.5,3486.4,0.28705]
[1735912964899,2.25436382,3486.5,3486.4,0.28705]
[1735912965104,3.81331732,3486.5,3486.4,0.28707]
[1735912966110,3.38254558,3486.5,3486.4,0.28707]
[1735912966401,2.25382725,3486.6,3486.2,14.581]
[1735912966708,3.2078,3486.4,3486.3,0.28708]
[1735912975511,3.2078,3486.4,3486.3,4.75504033]
[1735912976812,3.2078,3486.4,3486.3,0.28708]
[1735912978724,3.49487,3486.4,3486.3,0.28708]
[1735912979917,3.2078,3486.4,3486.3,0.28708]
[1735912982319,2.25382725,3486.6,3486.2,19.04896033]
[1735912982519,2.25382725,3486.6,3486.5,0.28706]
[1735912983927,3.81327504,3486.7,3486.6,0.28705]
[1735912985024,3.38254558,3486.7,3486.6,0.28705]
[1735912987728,3.2078,3486.7,3486.6,0.28705]
[1735912988728,3.49484,3486.7,3486.6,0.28705]
[1735912990022,8.41685597,3486.7,3486.6,0.28705]
[1735912990426,8.12981597,3486.7,3486.6,0.28705]
[1735912993021,3.63853227,3486.7,3486.6,0.28705]
[1735912994129,7.02499935,3486.7,3486.6,0.28705]
[1735912996532,6.59426708,3486.7,3486.6,0.28705]
[1735912996737,5.46547205,3486.7,3486.6,4.75501033]
[1735912997029,5.46547205,3486.7,3486.6,26.58696992]
[1735912997332,5.46547205,3486.7,3486.6,21.58696992]
[1735912998233,5.46547205,3486.7,3486.6,26.58696992]
[1735912998535,3.2078,3486.7,3486.6,31.15240105]
[1735912999338,3.2078,3486.7,3486.6,26.15240105]
[1735912999633,3.2078,3486.7,3486.6,31.36972584]
[1735913000331,3.2078,3486.7,3486.6,26.36972584]
[1735913001633,3.2078,3486.7,3486.6,24.11876625]
[1735913002333,3.2078,3486.7,3486.6,15.08537479]
[1735913002531,3.2078,3486.7,3486.6,14.86805]
[1735913003435,3.2078,3486.7,3486.6,21.61324782]
[1735913004137,3.49484,3486.7,3486.6,21.32619782]
[1735913004938,5.75251205,3486.7,3486.6,14.581]
[1735913005940,6.88130708,3486.7,3486.6,14.581]
[1735913006640,6.88130708,3486.7,3486.6,14.86805]
[1735913007540,8.4168778,3486.7,3486.6,14.86805]
[1735913008843,3.9255941,3486.7,3486.6,14.86805]
[1735913009952,3.49484,3486.7,3486.6,14.86805]
[1735913010649,3.2078,3486.7,3486.6,14.86805]
[1735913011247,8.15105881,3486.7,3486.6,14.86805]
[1735913012451,7.02293571,3486.7,3486.6,14.86805]
[1735913014053,7.30997571,3486.7,3486.6,14.86805]
[1735913014555,7.02293571,3486.7,3486.6,14.86805]
[1735913014950,7.30997571,3486.7,3486.6,14.86805]
[1735913015446,3.9255941,3486.7,3486.6,14.86805]
[1735913017251,3.9255941,3486.7,3486.6,14.581]
[1735913017853,3.9255941,3486.7,3486.6,14.86805]
[1735913019643,3.9255941,3486.7,3486.6,14.581]
[1735913019954,3.9255941,3486.7,3486.6,14.86805]
[1735913020455,3.9255941,3486.7,3486.6,14.581]
[1735913020655,3.9255941,3486.7,3486.6,14.86805]
[1735913020851,8.43809142,3486.7,3486.6,14.86805]
[1735913021154,8.43809142,3486.7,3486.6,14.581]
[1735913021851,8.82246572,3486.7,3486.6,14.581]
[1735913022057,13.82246572,3486.7,3486.6,14.581]
[1735913022755,54.62246572,3486.7,3486.6,14.581]
[1735913023349,62.45722902,3486.7,3486.6,8.54936447]
[1735913023558,62.45722902,3486.7,3486.6,2.51736447]
[1735913024257,54.62246572,3486.7,3486.6,2.51736447]
[1735913025659,54.62246572,3486.7,3485.4,0.28714]
[1735913025660,0.28715,3485.5,3485.4,0.28714]
[1735913025957,3.49494,3485.5,3485.4,0.28714]
[1735913027157,5.46219967,3485.5,3485.4,0.28714]
[1735913028860,3.2078,3485.5,3485.4,0.28714]
[1735913031152,3.49494,3485.5,3485.4,0.28714]
[1735913032665,3.2078,3485.5,3485.4,0.28714]
[1735913035462,5.46219967,3485.9,3485.8,0.28712]
[1735913035861,3.2078,3485.9,3485.8,0.28712]
[1735913044960,3.2078,3485.9,3485.4,0.71788]
[1735913045161,0.28713,3485.7,3485.6,0.28713]
[1735913045363,0.28714,3485.6,3485.5,0.28714]
[1735913045568,2.25095959,3485.7,3485.5,0.28714]
[1735913045770,0.28713,3485.6,3485.5,0.28714]
[1735913046569,2.25095959,3485.7,3485.0,4.49744625]
[1735913046875,3.2078,3485.3,3485.2,0.28717]
[1735913047467,3.49496,3485.3,3485.2,0.28717]
[1735913048673,3.2078,3485.3,3485.2,0.28717]
[1735913053281,3.2078,3485.3,3485.2,4.78461625]
[1735913054676,3.2078,3485.3,3485.2,0.28717]
[1735913056286,3.2078,3485.7,3485.3,0.71788]
[1735913056485,3.2078,3485.7,3485.6,0.28713]
[1735913056982,0.28712,3485.8,3485.7,0.28713]
[1735913058780,5.45875959,3486.1,3485.4,0.71788]
[1735913059083,0.28712,3485.9,3485.8,0.2871]
[1735913063079,3.4949,3486.1,3485.4,4.49744625]
[1735913063283,3.4949,3486.1,3486.0,0.2871]
[1735913063791,3.2078,3486.1,3486.0,0.2871]